[Event "Titled Tuesday Blitz January 31 Late 2023"]
[White "Kaufman, Lawrence"]
[Black "Suder, Jakub"]
[WhiteFideId "2000555"]
[BlackFideId "1195310"]
[WhiteElo "2188"]
[BlackElo "2244"]
[Result "0-1"]
[Round "01"]
[TimeControl "180+2"]
[Date "2023.01.31"]
[WhiteClock "0:00:04"]
[BlackClock "0:00:26"]

1. e4 {[%clk 0:02:59]}  c5 {[%clk 0:02:51]} 2. Nf3 {[%clk 0:02:57]}  e6 {[%clk 0:02:51]} 3. c3 {[%clk 0:02:57]}  Nf6 {[%clk 0:02:50]} 4. e5 {[%clk 0:02:56]}  Nd5 {[%clk 0:02:41]} 5. Bc4 {[%clk 0:02:54]}  d6 {[%clk 0:02:41]} 6. d4 {[%clk 0:02:51]}  cxd4 {[%clk 0:02:40]} 7. cxd4 {[%clk 0:02:49]}  Nb6 {[%clk 0:02:40]} 8. Bb3 {[%clk 0:02:47]}  dxe5 {[%clk 0:02:36]} 9. Nxe5 {[%clk 0:02:42]}  Nc6 {[%clk 0:02:36]} 10. Nf3 {[%clk 0:02:35]}  Bd7 {[%clk 0:02:31]} 11. O-O {[%clk 0:02:34]}  Bd6 {[%clk 0:02:29]} 12. Nc3 {[%clk 0:02:23]}  O-O {[%clk 0:02:28]} 13. Ne4 {[%clk 0:02:16]}  Be7 {[%clk 0:02:28]} 14. Bf4 {[%clk 0:02:05]}  Na5 {[%clk 0:02:17]} 15. Bc2 {[%clk 0:02:01]}  Nd5 {[%clk 0:02:17]} 16. Bg3 {[%clk 0:01:56]}  Bb5 {[%clk 0:02:15]} 17. Re1 {[%clk 0:01:42]}  Rc8 {[%clk 0:02:13]} 18. a3 {[%clk 0:01:24]}  Nc4 {[%clk 0:02:10]} 19. Rb1 {[%clk 0:01:14]}  Qa5 {[%clk 0:01:58]} 20. Ne5 {[%clk 0:01:00]}  Nxe5 {[%clk 0:01:58]} 21. dxe5 {[%clk 0:00:50]}  f5 {[%clk 0:00:53]} 22. exf6 {[%clk 0:00:46]}  Nxf6 {[%clk 0:00:53]} 23. Ng5 {[%clk 0:00:36]}  Bc4 {[%clk 0:00:42]} 24. Nxe6 {[%clk 0:00:27]}  Rfe8 {[%clk 0:00:38]} 25. Nf4 {[%clk 0:00:23]}  Bf8 {[%clk 0:00:34]} 26. Rxe8 {[%clk 0:00:21]}  Rxe8 {[%clk 0:00:34]} 27. Qd4 {[%clk 0:00:13]}  Bf7 {[%clk 0:00:33]} 28. Nd3 {[%clk 0:00:08]}  Kh8 {[%clk 0:00:29]} 29. h3 {[%clk 0:00:04]}  Rd8 {[%clk 0:00:26]} 0-1


[Site "https://www.chess.com"]

[Event "Titled Tuesday Blitz January 31 Late 2023"]
[White "Lesbekova, Assel"]
[Black "Kourkoulos-Arditis, Stamatis"]
[WhiteFideId "13713248"]
[BlackFideId "4221990"]
[WhiteElo "1772"]
[BlackElo "2539"]
[Result "0-1"]
[Round "01"]
[TimeControl "180+2"]
[Date "2023.01.31"]
[WhiteClock "0:01:33"]
[BlackClock "0:01:55"]

1. e4 {[%clk 0:02:56]}  e5 {[%clk 0:02:59]} 2. Nf3 {[%clk 0:02:54]}  Nc6 {[%clk 0:02:58]} 3. d4 {[%clk 0:02:49]}  exd4 {[%clk 0:02:53]} 4. Nxd4 {[%clk 0:02:50]}  g6 {[%clk 0:02:40]} 5. Nxc6 {[%clk 0:02:47]}  bxc6 {[%clk 0:02:41]} 6. Qd4 {[%clk 0:02:46]}  Qf6 {[%clk 0:02:36]} 7. e5 {[%clk 0:02:43]}  Qe7 {[%clk 0:02:35]} 8. Be2 {[%clk 0:02:36]}  Bg7 {[%clk 0:02:35]} 9. f4 {[%clk 0:02:28]}  Nh6 {[%clk 0:02:35]} 10. O-O {[%clk 0:02:25]}  Nf5 {[%clk 0:02:35]} 11. Qd3 {[%clk 0:02:18]}  h5 {[%clk 0:02:27]} 12. Nc3 {[%clk 0:02:14]}  O-O {[%clk 0:02:23]} 13. Ne4 {[%clk 0:02:09]}  d6 {[%clk 0:02:17]} 14. exd6 {[%clk 0:02:06]}  cxd6 {[%clk 0:02:18]} 15. c3 {[%clk 0:02:00]}  Re8 {[%clk 0:02:05]} 16. Bf3 {[%clk 0:01:56]}  d5 {[%clk 0:02:05]} 17. Nf2 {[%clk 0:01:41]}  a5 {[%clk 0:01:58]} 18. Qc2 {[%clk 0:01:34]}  Ba6 {[%clk 0:01:56]} 19. Rd1 {[%clk 0:01:33]}  Qe1+ {[%clk 0:01:55]} 0-1


[Site "https://www.chess.com"]

[Event "Titled Tuesday Blitz January 31 Late 2023"]
[White "Osmonbekov, Talaibek"]
[Black "Blomqvist, Erik"]
[WhiteFideId "2017253"]
[BlackFideId "1709437"]
[WhiteElo "2137"]
[BlackElo "2523"]
[Result "0-1"]
[Round "01"]
[TimeControl "180+2"]
[Date "2023.01.31"]
[WhiteClock "0:00:02"]
[BlackClock "0:00:13"]

1. d4 {[%clk 0:02:58]}  d5 {[%clk 0:02:58]} 2. Bf4 {[%clk 0:02:59]}  c5 {[%clk 0:02:57]} 3. e3 {[%clk 0:02:58]}  Nc6 {[%clk 0:02:57]} 4. Nc3 {[%clk 0:02:58]}  cxd4 {[%clk 0:02:54]} 5. exd4 {[%clk 0:02:59]}  a6 {[%clk 0:02:44]} 6. Be2 {[%clk 0:02:41]}  Nf6 {[%clk 0:02:36]} 7. Nf3 {[%clk 0:02:37]}  Bg4 {[%clk 0:02:35]} 8. O-O {[%clk 0:02:30]}  e6 {[%clk 0:02:23]} 9. Ne5 {[%clk 0:02:29]}  Bxe2 {[%clk 0:02:19]} 10. Nxe2 {[%clk 0:02:30]}  Nxe5 {[%clk 0:02:11]} 11. dxe5 {[%clk 0:02:23]}  Ne4 {[%clk 0:02:00]} 12. Ng3 {[%clk 0:01:55]}  Nc5 {[%clk 0:01:42]} 13. Qg4 {[%clk 0:01:43]}  g6 {[%clk 0:01:30]} 14. Rad1 {[%clk 0:01:29]}  h5 {[%clk 0:01:29]} 15. Qf3 {[%clk 0:01:20]}  h4 {[%clk 0:01:18]} 16. Ne2 {[%clk 0:01:18]}  Qb6 {[%clk 0:01:10]} 17. Bg5 {[%clk 0:01:03]}  Ne4 {[%clk 0:01:07]} 18. Bf6 {[%clk 0:00:58]}  Rh5 {[%clk 0:01:07]} 19. c4 {[%clk 0:00:26]}  Rf5 {[%clk 0:01:06]} 20. Qe3 {[%clk 0:00:26]}  Qxe3 {[%clk 0:00:56]} 21. fxe3 {[%clk 0:00:26]}  Bc5 {[%clk 0:00:50]} 22. Rxf5 {[%clk 0:00:20]}  Bxe3+ {[%clk 0:00:46]} 23. Kf1 {[%clk 0:00:21]}  gxf5 {[%clk 0:00:45]} 24. cxd5 {[%clk 0:00:21]}  Rc8 {[%clk 0:00:40]} 25. d6 {[%clk 0:00:19]}  Kd7 {[%clk 0:00:40]} 26. Bxh4 {[%clk 0:00:16]}  Rc2 {[%clk 0:00:38]} 27. Be1 {[%clk 0:00:14]}  Rxb2 {[%clk 0:00:36]} 28. h4 {[%clk 0:00:13]}  Rxa2 {[%clk 0:00:32]} 29. Rb1 {[%clk 0:00:12]}  b5 {[%clk 0:00:32]} 30. Rb3 {[%clk 0:00:11]}  Bh6 {[%clk 0:00:28]} 31. Nc3 {[%clk 0:00:10]}  Nc5 {[%clk 0:00:20]} 32. Rxb5 {[%clk 0:00:06]}  axb5 {[%clk 0:00:17]} 33. Nxa2 {[%clk 0:00:06]}  Nd3 {[%clk 0:00:17]} 34. Bc3 {[%clk 0:00:02]}  Bg7 {[%clk 0:00:13]} 0-1


[Site "https://www.chess.com"]

[Event "Titled Tuesday Blitz January 31 Late 2023"]
[White "Lymar, Vladislav"]
[Black "Wang, Alexander J"]
[WhiteFideId "14162180"]
[BlackFideId "30955270"]
[WhiteElo "2119"]
[BlackElo "1815"]
[Result "1-0"]
[Round "01"]
[TimeControl "180+2"]
[Date "2023.01.31"]
[WhiteClock "0:00:47"]
[BlackClock "0:00:09"]

1. e4 {[%clk 0:03:00]}  c5 {[%clk 0:02:57]} 2. Nf3 {[%clk 0:03:00]}  d6 {[%clk 0:02:52]} 3. g3 {[%clk 0:03:00]}  Nf6 {[%clk 0:02:49]} 4. Nc3 {[%clk 0:02:59]}  g6 {[%clk 0:02:47]} 5. Bg2 {[%clk 0:02:59]}  Bg7 {[%clk 0:02:34]} 6. O-O {[%clk 0:02:59]}  O-O {[%clk 0:02:15]} 7. d3 {[%clk 0:02:59]}  Nc6 {[%clk 0:02:11]} 8. h3 {[%clk 0:02:57]}  a6 {[%clk 0:02:09]} 9. a4 {[%clk 0:02:56]}  Rb8 {[%clk 0:02:09]} 10. Be3 {[%clk 0:02:56]}  b5 {[%clk 0:02:07]} 11. axb5 {[%clk 0:02:57]}  axb5 {[%clk 0:02:08]} 12. Qd2 {[%clk 0:02:58]}  b4 {[%clk 0:02:07]} 13. Ne2 {[%clk 0:02:58]}  Bb7 {[%clk 0:02:05]} 14. Bh6 {[%clk 0:02:57]}  Ra8 {[%clk 0:02:05]} 15. Nh2 {[%clk 0:02:36]}  Rxa1 {[%clk 0:01:41]} 16. Rxa1 {[%clk 0:02:37]}  Qb6 {[%clk 0:01:39]} 17. Ng4 {[%clk 0:02:21]}  Ra8 {[%clk 0:01:24]} 18. Rxa8+ {[%clk 0:02:04]}  Bxa8 {[%clk 0:01:25]} 19. Bxg7 {[%clk 0:02:04]}  Kxg7 {[%clk 0:01:24]} 20. Nxf6 {[%clk 0:02:00]}  exf6 {[%clk 0:01:25]} 21. Nf4 {[%clk 0:01:47]}  Nd4 {[%clk 0:01:13]} 22. c3 {[%clk 0:01:40]}  bxc3 {[%clk 0:01:10]} 23. bxc3 {[%clk 0:01:41]}  Qb1+ {[%clk 0:01:09]} 24. Kh2 {[%clk 0:01:41]}  Ne6 {[%clk 0:01:04]} 25. Ne2 {[%clk 0:01:31]}  c4 {[%clk 0:00:58]} 26. Nc1 {[%clk 0:01:13]}  cxd3 {[%clk 0:00:54]} 27. Nxd3 {[%clk 0:01:13]}  Nc5 {[%clk 0:00:47]} 28. Nxc5 {[%clk 0:01:03]}  dxc5 {[%clk 0:00:48]} 29. Qe3 {[%clk 0:01:03]}  Qc2 {[%clk 0:00:21]} 30. Qxc5 {[%clk 0:00:57]}  Bxe4 {[%clk 0:00:20]} 31. Bxe4 {[%clk 0:00:58]}  Qxe4 {[%clk 0:00:21]} 32. c4 {[%clk 0:00:51]}  Qc2 {[%clk 0:00:21]} 33. Qd4 {[%clk 0:00:50]}  Qe2 {[%clk 0:00:09]} 34. c5 {[%clk 0:00:49]}  Qc2 {[%clk 0:00:10]} 35. Kg2 {[%clk 0:00:48]}  Qa4 {[%clk 0:00:09]} 36. Qxa4 {[%clk 0:00:47]} 1-0


[Site "https://www.chess.com"]

[Event "Titled Tuesday Blitz January 31 Late 2023"]
[White "Fajdetic, Hrvoje"]
[Black "Crevatin, Leo"]
[WhiteFideId "14501945"]
[BlackFideId "1726307"]
[WhiteElo "2151"]
[BlackElo "2292"]
[Result "0-1"]
[Round "01"]
[TimeControl "180+2"]
[Date "2023.01.31"]
[WhiteClock "0:00:09"]
[BlackClock "0:00:34"]

1. d4 {[%clk 0:02:59]}  Nf6 {[%clk 0:02:59]} 2. Bf4 {[%clk 0:02:58]}  d5 {[%clk 0:02:58]} 3. e3 {[%clk 0:02:57]}  g6 {[%clk 0:02:55]} 4. Nc3 {[%clk 0:02:50]}  Bg7 {[%clk 0:02:54]} 5. h4 {[%clk 0:02:49]}  h5 {[%clk 0:02:52]} 6. Nf3 {[%clk 0:02:48]}  O-O {[%clk 0:02:47]} 7. Ne5 {[%clk 0:02:46]}  c5 {[%clk 0:02:44]} 8. Be2 {[%clk 0:02:36]}  Nc6 {[%clk 0:02:41]} 9. g4 {[%clk 0:02:34]}  cxd4 {[%clk 0:02:31]} 10. exd4 {[%clk 0:02:30]}  hxg4 {[%clk 0:02:21]} 11. Nxg4 {[%clk 0:02:07]}  Nxg4 {[%clk 0:02:17]} 12. Bxg4 {[%clk 0:02:08]}  Nxd4 {[%clk 0:02:16]} 13. Bxc8 {[%clk 0:02:02]}  Rxc8 {[%clk 0:02:15]} 14. h5 {[%clk 0:02:01]}  e5 {[%clk 0:02:12]} 15. Bd2 {[%clk 0:01:25]}  e4 {[%clk 0:01:58]} 16. Be3 {[%clk 0:00:45]}  Nf3+ {[%clk 0:01:55]} 17. Kf1 {[%clk 0:00:46]}  Bxc3 {[%clk 0:01:26]} 18. bxc3 {[%clk 0:00:46]}  Rxc3 {[%clk 0:01:25]} 19. hxg6 {[%clk 0:00:40]}  d4 {[%clk 0:01:06]} 20. Bd2 {[%clk 0:00:27]}  Rc6 {[%clk 0:00:58]} 21. Bb4 {[%clk 0:00:20]}  Re8 {[%clk 0:00:49]} 22. gxf7+ {[%clk 0:00:19]}  Kxf7 {[%clk 0:00:50]} 23. Rh7+ {[%clk 0:00:17]}  Kg8 {[%clk 0:00:50]} 24. Rxb7 {[%clk 0:00:16]}  Qh4 {[%clk 0:00:47]} 25. c3 {[%clk 0:00:11]}  Qh3+ {[%clk 0:00:35]} 26. Ke2 {[%clk 0:00:10]}  d3+ {[%clk 0:00:35]} 27. Ke3 {[%clk 0:00:09]}  Qh6# {[%clk 0:00:34]} 0-1


[Site "https://www.chess.com"]

[Event "Titled Tuesday Blitz January 31 Late 2023"]
[White "Floresvillar Gonzalez, Luis Migu"]
[Black "Aggelis, Nikolaos"]
[WhiteFideId "5100542"]
[BlackFideId "4213220"]
[WhiteElo "2043"]
[BlackElo "2270"]
[Result "0-1"]
[Round "01"]
[TimeControl "180+2"]
[Date "2023.01.31"]
[WhiteClock "0:00:10"]
[BlackClock "0:01:19"]

1. d4 {[%clk 0:02:58]}  b6 {[%clk 0:02:55]} 2. c3 {[%clk 0:02:58]}  Bb7 {[%clk 0:02:55]} 3. Bg5 {[%clk 0:02:58]}  f6 {[%clk 0:02:51]} 4. Bh4 {[%clk 0:02:53]}  Nh6 {[%clk 0:02:51]} 5. e3 {[%clk 0:02:49]}  Nf5 {[%clk 0:02:50]} 6. Bg3 {[%clk 0:02:46]}  h5 {[%clk 0:02:50]} 7. Be2 {[%clk 0:02:30]}  g6 {[%clk 0:02:44]} 8. Nf3 {[%clk 0:02:02]}  h4 {[%clk 0:02:42]} 9. Bf4 {[%clk 0:02:02]}  h3 {[%clk 0:02:34]} 10. g4 {[%clk 0:01:46]}  Nh4 {[%clk 0:02:31]} 11. Nxh4 {[%clk 0:01:29]}  Bxh1 {[%clk 0:02:30]} 12. Nxg6 {[%clk 0:01:28]}  Rg8 {[%clk 0:02:31]} 13. Bd3 {[%clk 0:01:20]}  Bd5 {[%clk 0:02:26]} 14. g5 {[%clk 0:01:18]}  fxg5 {[%clk 0:02:16]} 15. Bxg5 {[%clk 0:01:16]}  Bf7 {[%clk 0:02:15]} 16. Nxf8 {[%clk 0:01:10]}  Rxf8 {[%clk 0:02:13]} 17. Qg4 {[%clk 0:01:03]}  d5 {[%clk 0:02:03]} 18. Qxh3 {[%clk 0:01:00]}  Qd7 {[%clk 0:02:02]} 19. Qh4 {[%clk 0:00:55]}  Nc6 {[%clk 0:01:51]} 20. Na3 {[%clk 0:00:52]}  a6 {[%clk 0:01:37]} 21. O-O-O {[%clk 0:00:52]}  Qe6 {[%clk 0:01:37]} 22. Nc2 {[%clk 0:00:43]}  Bg6 {[%clk 0:01:36]} 23. f4 {[%clk 0:00:19]}  Bxd3 {[%clk 0:01:34]} 24. Rxd3 {[%clk 0:00:19]}  O-O-O {[%clk 0:01:34]} 25. Rd2 {[%clk 0:00:19]}  Rh8 {[%clk 0:01:34]} 26. Qg3 {[%clk 0:00:18]}  Qe4 {[%clk 0:01:30]} 27. h4 {[%clk 0:00:17]}  Rdg8 {[%clk 0:01:24]} 28. Ne1 {[%clk 0:00:16]}  Na5 {[%clk 0:01:22]} 29. Nf3 {[%clk 0:00:16]}  Nc4 {[%clk 0:01:23]} 30. Rd1 {[%clk 0:00:15]}  Qxe3+ {[%clk 0:01:23]} 31. Kb1 {[%clk 0:00:14]}  Qe2 {[%clk 0:01:21]} 32. Rc1 {[%clk 0:00:10]}  Qxb2# {[%clk 0:01:19]} 0-1


[Site "https://www.chess.com"]

[Event "Titled Tuesday Blitz January 31 Late 2023"]
[White "Kavutskiy, Konstantin"]
[Black "Corredor Castellanos, Camilo"]
[WhiteFideId "2026384"]
[BlackFideId "4425871"]
[WhiteElo "2414"]
[BlackElo "1957"]
[Result "1-0"]
[Round "01"]
[TimeControl "180+2"]
[Date "2023.01.31"]
[WhiteClock "0:01:23"]
[BlackClock "0:00:21"]

1. d4 {[%clk 0:02:57]}  Nf6 {[%clk 0:02:58]} 2. c4 {[%clk 0:02:57]}  g6 {[%clk 0:02:59]} 3. Nc3 {[%clk 0:02:55]}  Bg7 {[%clk 0:02:59]} 4. e4 {[%clk 0:02:55]}  d6 {[%clk 0:02:59]} 5. h3 {[%clk 0:02:55]}  O-O {[%clk 0:02:58]} 6. Be3 {[%clk 0:02:55]}  e5 {[%clk 0:02:56]} 7. d5 {[%clk 0:02:55]}  a5 {[%clk 0:02:46]} 8. g4 {[%clk 0:02:34]}  Na6 {[%clk 0:02:45]} 9. Nge2 {[%clk 0:02:32]}  Nc5 {[%clk 0:02:35]} 10. Ng3 {[%clk 0:02:22]}  Qe7 {[%clk 0:02:06]} 11. Qd2 {[%clk 0:02:19]}  c6 {[%clk 0:01:59]} 12. f3 {[%clk 0:02:00]}  Rd8 {[%clk 0:01:59]} 13. h4 {[%clk 0:01:58]}  b5 {[%clk 0:01:23]} 14. dxc6 {[%clk 0:01:54]}  b4 {[%clk 0:01:19]} 15. Nd5 {[%clk 0:01:54]}  Nxd5 {[%clk 0:01:18]} 16. cxd5 {[%clk 0:01:55]}  Ba6 {[%clk 0:01:18]} 17. Bxc5 {[%clk 0:01:54]}  dxc5 {[%clk 0:01:18]} 18. Bxa6 {[%clk 0:01:53]}  Rxa6 {[%clk 0:01:18]} 19. O-O {[%clk 0:01:53]}  Qxh4 {[%clk 0:01:18]} 20. Qh2 {[%clk 0:01:50]}  Qe7 {[%clk 0:01:12]} 21. Qe2 {[%clk 0:01:49]}  Ra7 {[%clk 0:01:09]} 22. Rfd1 {[%clk 0:01:50]}  Bh6 {[%clk 0:01:05]} 23. Nf1 {[%clk 0:01:49]}  Bf4 {[%clk 0:01:05]} 24. a3 {[%clk 0:01:45]}  h5 {[%clk 0:01:05]} 25. Qg2 {[%clk 0:01:39]}  hxg4 {[%clk 0:01:01]} 26. Qxg4 {[%clk 0:01:38]}  Kg7 {[%clk 0:00:59]} 27. Kf2 {[%clk 0:01:34]}  Rh8 {[%clk 0:00:58]} 28. d6 {[%clk 0:01:31]}  Qd8 {[%clk 0:00:30]} 29. c7 {[%clk 0:01:29]}  Qa8 {[%clk 0:00:25]} 30. Ng3 {[%clk 0:01:23]}  Rh2+ {[%clk 0:00:23]} 31. Kg1 {[%clk 0:01:23]}  Bxg3 {[%clk 0:00:23]} 32. Qxg3 {[%clk 0:01:23]}  Qh8 {[%clk 0:00:21]} 33. Qxh2 {[%clk 0:01:23]} 1-0


[Site "https://www.chess.com"]

[Event "Titled Tuesday Blitz January 31 Late 2023"]
[White "Korchmar, Vasiliy"]
[Black "Zampronha, Wladimir Camilo"]
[WhiteFideId "24131750"]
[BlackFideId "2103087"]
[WhiteElo "2438"]
[BlackElo "2176"]
[Result "1-0"]
[Round "01"]
[TimeControl "180+2"]
[Date "2023.01.31"]
[WhiteClock "0:01:12"]
[BlackClock "0:00:58"]

1. e4 {[%clk 0:03:00]}  c5 {[%clk 0:03:00]} 2. Nf3 {[%clk 0:03:00]}  e6 {[%clk 0:03:00]} 3. g3 {[%clk 0:03:00]}  Nc6 {[%clk 0:02:58]} 4. Bg2 {[%clk 0:03:00]}  d6 {[%clk 0:02:48]} 5. O-O {[%clk 0:02:59]}  Nf6 {[%clk 0:02:48]} 6. Re1 {[%clk 0:02:58]}  Be7 {[%clk 0:02:46]} 7. c3 {[%clk 0:02:58]}  O-O {[%clk 0:02:44]} 8. d4 {[%clk 0:02:59]}  cxd4 {[%clk 0:02:44]} 9. cxd4 {[%clk 0:03:00]}  d5 {[%clk 0:02:45]} 10. e5 {[%clk 0:02:59]}  Ne4 {[%clk 0:02:44]} 11. Nbd2 {[%clk 0:02:59]}  Nxd2 {[%clk 0:02:33]} 12. Bxd2 {[%clk 0:02:59]}  Bd7 {[%clk 0:02:31]} 13. h4 {[%clk 0:02:59]}  Qb6 {[%clk 0:02:19]} 14. Bc3 {[%clk 0:02:53]}  f5 {[%clk 0:02:18]} 15. exf6 {[%clk 0:02:48]}  Bxf6 {[%clk 0:02:18]} 16. Qd2 {[%clk 0:02:44]}  Rae8 {[%clk 0:02:16]} 17. Re2 {[%clk 0:02:34]}  Ne7 {[%clk 0:02:08]} 18. a4 {[%clk 0:02:17]}  Nf5 {[%clk 0:02:05]} 19. Ne5 {[%clk 0:02:08]}  Qd8 {[%clk 0:01:55]} 20. b3 {[%clk 0:01:40]}  a6 {[%clk 0:01:37]} 21. Rae1 {[%clk 0:01:33]}  Qc7 {[%clk 0:01:30]} 22. Ba5 {[%clk 0:01:26]}  b6 {[%clk 0:01:14]} 23. Bxb6 {[%clk 0:01:24]}  Qxb6 {[%clk 0:01:15]} 24. Nxd7 {[%clk 0:01:24]}  Qxd4 {[%clk 0:01:11]} 25. Nxf8 {[%clk 0:01:20]}  Qxd2 {[%clk 0:01:10]} 26. Rxd2 {[%clk 0:01:19]}  Bc3 {[%clk 0:01:04]} 27. Rxe6 {[%clk 0:01:13]}  Kxf8 {[%clk 0:00:57]} 28. Rxe8+ {[%clk 0:01:11]}  Kxe8 {[%clk 0:00:58]} 29. Rxd5 {[%clk 0:01:12]} 1-0


[Site "https://www.chess.com"]

[Event "Titled Tuesday Blitz January 31 Late 2023"]
[White "Aldokhin, Ivan"]
[Black "Chabris, Christopher"]
[WhiteFideId "24115720"]
[BlackFideId "2005263"]
[WhiteElo "2413"]
[BlackElo "2053"]
[Result "1-0"]
[Round "01"]
[TimeControl "180+2"]
[Date "2023.01.31"]
[WhiteClock "0:00:06"]
[BlackClock "0:00:10"]

1. e4 {[%clk 0:03:00]}  c5 {[%clk 0:02:59]} 2. Nf3 {[%clk 0:03:01]}  d6 {[%clk 0:02:59]} 3. d4 {[%clk 0:03:01]}  cxd4 {[%clk 0:02:59]} 4. Nxd4 {[%clk 0:03:02]}  Nf6 {[%clk 0:02:59]} 5. Nc3 {[%clk 0:03:03]}  a6 {[%clk 0:02:59]} 6. Bc4 {[%clk 0:03:03]}  e6 {[%clk 0:02:58]} 7. Bb3 {[%clk 0:03:03]}  Nbd7 {[%clk 0:02:58]} 8. O-O {[%clk 0:03:03]}  Nc5 {[%clk 0:02:58]} 9. Re1 {[%clk 0:03:02]}  Be7 {[%clk 0:02:57]} 10. Qf3 {[%clk 0:03:01]}  O-O {[%clk 0:02:48]} 11. Qg3 {[%clk 0:02:58]}  Kh8 {[%clk 0:02:48]} 12. Bg5 {[%clk 0:02:55]}  Qc7 {[%clk 0:02:40]} 13. Qh4 {[%clk 0:02:41]}  Ng8 {[%clk 0:02:30]} 14. Rad1 {[%clk 0:02:21]}  Bxg5 {[%clk 0:02:23]} 15. Qxg5 {[%clk 0:02:20]}  f6 {[%clk 0:02:17]} 16. Qh4 {[%clk 0:02:16]}  Nxb3 {[%clk 0:02:17]} 17. axb3 {[%clk 0:02:13]}  b5 {[%clk 0:02:14]} 18. b4 {[%clk 0:01:52]}  Bd7 {[%clk 0:02:10]} 19. f4 {[%clk 0:01:48]}  Qb6 {[%clk 0:01:47]} 20. Kh1 {[%clk 0:01:40]}  Rae8 {[%clk 0:01:43]} 21. f5 {[%clk 0:01:33]}  exf5 {[%clk 0:01:37]} 22. exf5 {[%clk 0:01:20]}  Re5 {[%clk 0:01:33]} 23. Nf3 {[%clk 0:00:59]}  Rxf5 {[%clk 0:01:26]} 24. Nd5 {[%clk 0:00:59]}  Qb7 {[%clk 0:01:20]} 25. Ne3 {[%clk 0:00:21]}  Rxf3 {[%clk 0:01:19]} 26. gxf3 {[%clk 0:00:20]}  Qxf3+ {[%clk 0:01:19]} 27. Kg1 {[%clk 0:00:21]}  Bc6 {[%clk 0:01:18]} 28. Qg3 {[%clk 0:00:20]}  Qe4 {[%clk 0:01:09]} 29. Nd5 {[%clk 0:00:16]}  Qxc2 {[%clk 0:01:01]} 30. Rc1 {[%clk 0:00:12]}  Qf5 {[%clk 0:00:44]} 31. Rxc6 {[%clk 0:00:08]}  Qxd5 {[%clk 0:00:43]} 32. Qxd6 {[%clk 0:00:08]}  Qxd6 {[%clk 0:00:38]} 33. Rxd6 {[%clk 0:00:09]}  Nh6 {[%clk 0:00:33]} 34. Rxa6 {[%clk 0:00:08]}  f5 {[%clk 0:00:32]} 35. Rb6 {[%clk 0:00:06]}  g5 {[%clk 0:00:31]} 36. Rxh6 {[%clk 0:00:05]}  f4 {[%clk 0:00:30]} 37. Rb6 {[%clk 0:00:05]}  f3 {[%clk 0:00:29]} 38. Kf2 {[%clk 0:00:05]}  h5 {[%clk 0:00:26]} 39. Rxb5 {[%clk 0:00:05]}  Rc8 {[%clk 0:00:22]} 40. Rxg5 {[%clk 0:00:05]}  Rc2+ {[%clk 0:00:21]} 41. Kxf3 {[%clk 0:00:05]}  Rxh2 {[%clk 0:00:20]} 42. Ree5 {[%clk 0:00:04]}  Rh3+ {[%clk 0:00:19]} 43. Kf4 {[%clk 0:00:03]}  Rh4+ {[%clk 0:00:18]} 44. Kf5 {[%clk 0:00:03]}  Rxb4 {[%clk 0:00:18]} 45. Kg6 {[%clk 0:00:03]}  Rb6+ {[%clk 0:00:18]} 46. Kxh5 {[%clk 0:00:04]}  Rxb2 {[%clk 0:00:17]} 47. Re8+ {[%clk 0:00:04]}  Kh7 {[%clk 0:00:17]} 48. Re7+ {[%clk 0:00:05]}  Kh8 {[%clk 0:00:18]} 49. Re4 {[%clk 0:00:05]}  Rh2+ {[%clk 0:00:17]} 50. Rh4 {[%clk 0:00:06]}  Rg2 {[%clk 0:00:10]} 51. Rxg2 {[%clk 0:00:06]} 1-0


[Site "https://www.chess.com"]